fUSD/lending_fUSD_20241105
["ID","MTS","AMOUNT","RATE_DAILY","PERIOD"]
[341322393,1730790631857,-846.7105,0.000159,2]
[341322395,1730790631867,-500.0,0.00015973,2]
[341322398,1730790631878,-510.79110373,0.00015973,2]
[341322400,1730790631888,-500.0,0.00015973,2]
[341322402,1730790631900,-500.0,0.00015973,2]
[341322404,1730790631911,-509.11478333,0.00015973,2]
[341322406,1730790631921,-178.07935769,0.0001599,2]
[341322408,1730790631932,-103301.4408608,0.00016,2]
[341322411,1730790631951,-2885.63850166,0.00016,2]
[341322423,1730790632029,-1802.1000002,0.00016,2]
[341322425,1730790632040,-43010.79713,0.00016,2]
[341322427,1730790632052,-614.72573488,0.00016,2]
[341322460,1730790637654,-897.251264,0.00016,2]
[341322489,1730790639571,-1022.41628091,0.00016,2]
[341322502,1730790639693,-9450.081712,0.00016,2]
[341322503,1730790639704,-7443.06862629,0.00016,2]
[341322505,1730790639715,-4606.84966171,0.00016,2]
[341322508,1730790639902,-2320.655625,0.00016,2]
[341322509,1730790639913,-10325.94344,0.00016,2]
[341322536,1730790643935,-35649.11429302,0.00016,2]
[341322537,1730790643946,-105274.67532516,0.00016,2]
[341322538,1730790644112,-279.24704195,0.00016,2]
[341322539,1730790644123,-1436.79883436,0.00016,2]
[341322540,1730790644156,-242343.64138332,0.00016,2]
[341322541,1730790644594,-5689.04335172,0.00016,2]
[341322542,1730790645514,-997.90142209,0.000157,2]
[341322543,1730791519659,150.0,9e-05,2]
[341322544,1730791519681,15.87,9e-05,2]
[341322563,1730791694383,-237.69684613,0.00015,2]
[341322564,1730791695456,-150.0,0.00015,2]
[341322565,1730791696096,-150.0,0.00015,2]
[341322566,1730791696793,-150.0,0.00015,2]
[341322567,1730791697520,-150.0,0.00015,2]
[341322568,1730791698242,-150.0,0.00015,2]
[341322569,1730791698908,-150.0,0.0001439,2]
[341322570,1730791700165,-150.0,0.0001439,2]
[341322571,1730791702027,-150.0,0.0001439,2]
[341322572,1730791702710,-150.0,0.0001439,2]
[341322573,1730791703431,-150.0,0.0001439,2]
[341322574,1730791704170,-150.0,0.0001439,2]
[341322599,1730791831677,-752.39645757,0.0001439,2]
[341322601,1730791831686,-335.62687087,0.000147,2]
[341322604,1730791831696,-590.60118555,0.00014996,2]
[341322605,1730791831705,-300.0,0.00014999,2]
[341322607,1730791831715,-8480.37548242,0.00015,2]
[341322609,1730791831726,-14521.37766506,0.00015,2]
[341322611,1730791831819,-449.99,0.00015,2]
[341322612,1730791831831,-5266.22263187,0.00015,2]
[341322613,1730791831865,-2988.54533529,0.00015,2]
[341322614,1730791831877,-6869.0,0.00015,2]
[341322615,1730791831888,-901.0,0.00015,2]
[341322616,1730791831912,-2167.0,0.00015,2]
[341322617,1730791832049,-4781.02268136,0.00015,2]
[341322618,1730791832060,-343.505,0.00015,2]
[341322619,1730791837692,-500.0,0.00014973,2]
[341322620,1730791837701,-8004.15025345,0.00015,2]
[341322621,1730791838092,-55879.375,0.00015,2]
[341322626,1730791839669,-7301.31618041,0.00015,2]
[341322627,1730791839680,-1262.69330657,0.00015,2]
[341322628,1730791839797,-1592.90080515,0.00015,2]
[341322641,1730791842855,-839.83329268,0.00015,2]
[341322642,1730791842967,-53064.71828956,0.00015,2]
[341322643,1730791842978,-150.0,0.00015096,2]
[341322644,1730791842989,-158.28,0.00015342,2]
[341322645,1730791842999,-7065.0,0.0001537,2]
[341322646,1730791843008,-223.79212069,0.000155,2]
[341322647,1730791843018,-1000.0,0.000156,2]
[341322648,1730791843029,-450.0,0.000156,2]
[341322649,1730791843039,-2500.0,0.000156,2]
[341322650,1730791843048,-425.63374272,0.00015634,2]
[341322651,1730791843059,-627.1938694,0.00015673,2]
[341322652,1730791843069,-25247.49137791,0.000157,2]
[341322653,1730791843078,-25267.93464375,0.000157,2]
[341322654,1730791843089,-31493.31385625,0.000157,2]
[341322655,1730791843099,-37810.8641,0.000157,2]
[341322656,1730791843109,-1000.0,0.000157,2]
[341322657,1730791843122,-100000.0,0.000157,2]
[341322658,1730791843131,-500.0,0.00015898,2]
[341322659,1730791843140,-500.0,0.00015898,2]
[341322660,1730791843150,-500.0,0.00015898,2]
[341322661,1730791843159,-500.0,0.00015898,2]
[341322662,1730791843171,-500.0,0.00015898,2]
[341322663,1730791843181,-500.0,0.00015898,2]
[341322664,1730791843190,-500.0,0.00015898,2]
[341322665,1730791843199,-500.0,0.00015898,2]
[341322666,1730791843209,-262.80365189,0.00015898,2]
[341322667,1730791843218,-500.0,0.00015898,2]
[341322668,1730791843228,-500.0,0.00015898,2]
[341322669,1730791843238,-8613.824707,0.000159,2]
[341322670,1730791843248,-150.01,0.00015999,2]
[341322671,1730791843258,-3708.439317,0.00015999,2]
[341322672,1730791843267,-131877.1386464,0.00016,2]
[341322680,1730791845745,-255.98580528,0.0001568,2]
[341322682,1730791863529,854.71,0.0001599,3]
[341322688,1730791975139,-671.1539,0.000149,2]
[341322689,1730791975186,-439.15254116,0.0001517,2]
[341322690,1730791975228,-1000.0,0.0001527,2]
[341322691,1730791975272,-158.12,0.00015342,2]
[341322692,1730791975315,-500.0,0.000156,2]
[341322693,1730791975356,-1000.0,0.000156,2]
[341322694,1730791975397,-2500.0,0.000156,2]
[341322695,1730791975437,-1050.61528527,0.0001567,2]
[341322696,1730791975483,-1090.13708906,0.0001567,2]
[341322697,1730791975523,-1143.42788892,0.0001567,2]
[341322698,1730791975563,-865.0440354,0.0001568,2]
[341322699,1730791975603,-297.62879186,0.00015798,2]
[341322700,1730791975643,-172.54072295,0.000159,2]
[341322701,1730791975686,-160.03264316,0.000159,2]
[341322702,1730791975727,-8613.824707,0.000159,2]
[341322703,1730791975882,-100000.0,0.000159,2]
[341322704,1730791975925,-2807.0666367,0.00015988,2]
[341322705,1730791975966,-6052.7791348,0.00015988,2]
[341322706,1730791976008,-2859.9052025,0.00015988,2]
[341322707,1730791976047,-2558.4432323,0.00015989,2]
[341322708,1730791976086,-2309.8198279,0.00015989,2]
[341322709,1730791976129,-5516.6812257,0.00015989,2]
[341322710,1730791976170,-4980.5833167,0.00015989,2]
[341322711,1730791976211,-2606.6018579,0.00015989,2]
[341322712,1730791976251,-2353.2985133,0.00015989,2]
[341322713,1730791976291,-1005.04835342,0.00015999,2]
[341322714,1730791976331,-150.01,0.00015999,2]
[341322715,1730791976370,-3708.439317,0.00015999,2]
[341322716,1730791976413,-500.0,0.00015999,2]
[341322717,1730791976456,-500.0,0.00015999,2]
[341322718,1730791976499,-500.0,0.00015999,2]
[341322719,1730791976541,-500.0,0.00015999,2]
[341322720,1730791976586,-500.0,0.00015999,2]
[341322721,1730791976632,-500.0,0.00015999,2]
[341322722,1730791976675,-500.0,0.00015999,2]
[341322723,1730791976721,-613.84109557,0.00015999,2]
[341322724,1730791976878,-289348.74653756,0.00016,2]
[341322725,1730791976919,-1023.767179,0.00016,2]
[341322726,1730791976961,-948943.29096487,0.00016,2]
[341322727,1730791977507,-150.0,0.00016,2]
[341322728,1730791977754,-150.0,0.00016,2]
[341322729,1730791977884,-150.0,0.00016,2]
[341322730,1730791978005,-150.0,0.00016,2]
[341322731,1730791978124,-150.0,0.00016,2]
[341322732,1730791978271,-150.0,0.00016,2]
[341322733,1730791978400,-150.0,0.00016,2]
[341322734,1730791978507,-150.0,0.00016,2]
[341322735,1730791978632,-150.0,0.00016,2]
[341322736,1730791978762,-150.0,0.00016,2]
[341322737,1730791978843,-150.0,0.00016,2]
[341322738,1730791978981,-150.0,0.00016,2]
[341322739,1730791979093,-150.0,0.00016,2]
[341322740,1730791979195,-150.0,0.00016,2]
[341322741,1730791979298,-178.35265596,0.00016,2]
[341322742,1730791979413,-150.0,0.00016,2]
[341322743,1730791979541,-150.0,0.00016,2]
[341322744,1730791980181,-150.0,0.00016,2]
[341322745,1730791980239,-150.0,0.00016,2]
[341322746,1730791980293,-150.0,0.00016,2]
[341322747,1730791980354,-150.0,0.00016,2]
[341322748,1730792005522,-1917.76881714,0.0001568,2]
[341322749,1730792005564,-300.0,0.00015999,2]
[341322750,1730792005606,-128515.61391248,0.00016,2]
[341322751,1730792005650,-166.24101,0.00016,2]
[341322752,1730792005883,-166.24101,0.00016,2]
[341322753,1730792005925,-593.914185,0.00016,2]
[341322754,1730792005970,-593.914185,0.00016,2]
[341322755,1730792006014,-151.0,0.00016,2]
[341322756,1730792006054,-151.0,0.00016,2]
[341322757,1730792006094,-151.0,0.00016,2]
[341322758,1730792006133,-151.0,0.00016,2]
[341322759,1730792006174,-142.30688038,0.00016,2]
[341322760,1730792451792,5252.0,0.00016,3]
[341322761,1730792491911,-425.63374272,0.00015712,2]
[341322762,1730792491934,-297.62879187,0.000158,2]
[341322763,1730792491960,-300.0,0.00015899,2]
[341322764,1730792491982,-1000.0,0.000159,2]
[341322765,1730792492005,-100000.0,0.000159,2]
[341322766,1730792492029,-3723.7732011,0.00015989,2]
[341322767,1730792492052,-1202.0117083,0.00015989,2]
[341322768,1730792492074,-2000.0,0.00016,2]
[341322769,1730792492095,-200.0,0.00016,2]
[341322770,1730792681357,150.0,0.00016,3]
[341322840,1730793031840,-156.82,0.00015342,2]
[341322841,1730793031850,-425.63374272,0.00015829,2]
[341322842,1730793031859,-2805.1898834,0.00016168,2]
[341322843,1730793031869,-644.68011592,0.00016179,2]
[341322844,1730793031878,-786.5676043,0.00016278,2]
[341322845,1730793031889,-238.22857398,0.00018285,5]
[341322846,1730793031901,-1847.0,0.000186,2]
[341322847,1730793031910,-342.0,0.000186,2]
[341322848,1730793031922,-155.0,0.00018813,2]
[341322849,1730793031935,-150.265,0.00018813,2]
[341322850,1730793031944,-150.0,0.00019288,2]
[341322851,1730793031954,-2480.96,0.00019452,2]
[341322852,1730793031965,-300.0,0.0002,3]
[341322853,1730793031974,-250.0,0.00020213,2]
[341322854,1730793031984,-203.038,0.00020213,2]
[341322855,1730793032149,-5000.0,0.00021,2]
[341322856,1730793032168,-250.0,0.00021,2]
[341322857,1730793032178,-1003.0,0.0002203,2]
[341322858,1730793032187,-463.61,0.00022815,2]
[341322859,1730793032197,-514.0,0.0002289,14]
[341322860,1730793032206,-3031.90073787,0.00023,2]
[341322861,1730793032216,-1003.0,0.0002319,2]
[341322862,1730793032226,-150.0,0.00023213,2]
[341322863,1730793032237,-794.72,0.00023923,2]
[341322864,1730793032249,-377.98,0.00024162,2]
[341322865,1730793032260,-409.67,0.00024371,2]
[341322866,1730793032269,-200.0,0.00024401,2]
[341322867,1730793032278,-1003.0,0.0002441,2]
[341322868,1730793032287,-4866.97854821,0.00024438,2]
[341322870,1730793032299,-19033.02145179,0.00024438,2]
[341322872,1730793032308,-166.26,0.00024514,2]
[341322874,1730793032317,-355.25,0.00024648,2]
[341322875,1730793032327,-373.85,0.00024652,2]
[341322877,1730793032337,-227.05,0.00024653,2]
[341322879,1730793032346,-158.28,0.000247,2]
[341322880,1730793032357,-166.27,0.00024823,2]
[341322881,1730793032368,-166.33,0.00024823,2]
[341322882,1730793032377,-294.19,0.00024958,2]
[341322883,1730793032388,-250.0,0.00024958,2]
[341322884,1730793032399,-160.0,0.00025,2]
[341322885,1730793032408,-250.0,0.00025123,2]
[341322886,1730793032417,-500.0,0.00025183,3]
[341322887,1730793032427,-1728.0,0.000252,2]
[341322888,1730793032436,-1000.0,0.0002522,2]
[341322889,1730793032445,-195.32,0.0002526,30]
[341322890,1730793032454,-377.98,0.0002537,2]
[341322891,1730793032463,-1003.0,0.00025695,2]
[341322892,1730793032472,-1087.0,0.000259,2]
[341322893,1730793032482,-794.72,0.00026187,2]
[341322894,1730793032491,-157.97,0.00026401,2]
[341322895,1730793032500,-152.0,0.0002642,3]
[341322896,1730793032509,-298.45,0.00026441,2]
[341322897,1730793032519,-377.98,0.00026578,2]
[341322898,1730793032528,-1003.0,0.0002698,2]
[341322899,1730793032537,-209.0,0.00027,7]
[341322900,1730793032547,-195.05446873,0.00027,120]
[341322901,1730793032556,-150.0,0.00027,2]
[341322902,1730793032565,-150.0,0.00027,2]
[341322903,1730793032573,-158.02,0.00027149,2]
[341322904,1730793032583,-152.0,0.00027301,4]
[341322905,1730793032592,-377.98,0.00027786,2]
[341322906,1730793032602,-155.064,0.000278,60]
[341322907,1730793032613,-195.32,0.00027844,30]
[341322908,1730793032622,-410.76735635,0.00028,15]
[341322909,1730793032631,-150.0,0.00028,2]
[341322910,1730793032640,-152.0,0.00028182,5]
[341322911,1730793032651,-1003.0,0.00028329,5]
[341322912,1730793032660,-1000.0,0.00028373,2]
[341322913,1730793032671,-794.72,0.00028451,2]
[341322914,1730793032682,-7150.0,0.0002868,2]
[341322915,1730793032691,-150.0,0.00028767,2]
[341322916,1730793032701,-184.16,0.0002877,10]
[341322917,1730793032711,-899.22,0.0002877,3]
[341322918,1730793032721,-153.47,0.0002877,10]
[341322919,1730793032731,-1000.0,0.0002878,2]
[341322920,1730793032741,-90601.9902,0.0002878,2]
[341322921,1730793032753,-531.54106704,0.0002878,2]
[341322922,1730793032763,-23450.09375044,0.0002888,2]
[341322923,1730793032790,-679.9999999,0.0002888,2]
[341322924,1730793032881,-8794.94328739,0.0002888,2]
[341322925,1730793032891,-1000.0,0.00028962,2]
[341322926,1730793032901,-2500.0,0.00028962,2]
[341322927,1730793032910,-377.98,0.00028994,2]
[341322928,1730793032921,-4072.0,0.00029,2]
[341322929,1730793032933,-152.0,0.00029062,6]
[341322930,1730793032943,-531.54106697,0.00029127,15]
[341322931,1730793032952,-8576.0,0.00029318,3]
[341322932,1730793032961,-531.54106697,0.00029473,15]
[341322933,1730793032972,-155.06,0.00029593,120]
[341322934,1730793032981,-160.03264314,0.000296,2]
[341322935,1730793032990,-150.55240034,0.000296,2]
[341322936,1730793033002,-175.64612441,0.000296,2]
[341322937,1730793033012,-347.35582032,0.00029673,5]
[341322938,1730793033021,-718.1661391,0.0002968,2]
[341322939,1730793033031,-2579.0544869,0.0002968,2]
[341322940,1730793033040,-500.0,0.00029699,2]
[341322941,1730793033050,-500.0,0.00029699,2]
[341322942,1730793033060,-500.0,0.00029699,2]
[341322943,1730793033069,-500.0,0.00029699,2]
[341322944,1730793033079,-500.0,0.00029699,2]
[341322945,1730793033089,-500.0,0.00029699,2]
[341322946,1730793033099,-96.12911737,0.00029699,2]
[341322947,1730793033111,-403.87088263,0.00029699,2]
[341322948,1730793033121,-500.0,0.00029699,2]
[341322949,1730793033131,-578.65132322,0.00029699,2]
[341322950,1730793033141,-500.0,0.00029699,2]
[341322951,1730793033152,-500.0,0.00029699,2]
[341322952,1730793033161,-550.0,0.00029699,2]
[341322953,1730793033171,-78088.64146415,0.000297,2]
[341322954,1730793033186,-2715.74817639,0.000297,2]
[341322958,1730793037938,-767.38,0.0002877,10]
[341322959,1730793037948,-6384.66385252,0.000297,2]
[341322965,1730793037989,-2447.7858,0.000297,2]
[341322968,1730793038060,-626.23648127,0.000297,2]
[341322969,1730793038124,-4050.12709817,0.000297,2]
[341322980,1730793039954,-250.0,0.00018813,2]
[341322981,1730793039966,-279.95,0.000297,2]
[341322982,1730793039978,-1449.35918265,0.000297,2]
[341322983,1730793040040,-151650.62421181,0.000297,2]
[341322984,1730793040052,-6846.47358208,0.000297,2]
[341322985,1730793040064,-3542.09174894,0.000297,2]
[341322986,1730793040075,-4925.52846422,0.000297,2]
[341322987,1730793040096,-1372.98,0.000297,2]
[341322988,1730793040107,-961.27203814,0.000297,2]
[341322989,1730793040155,-856.449,0.000297,2]
[341322990,1730793040206,-1730.84596,0.000297,2]
[341322991,1730793040218,-6315.3454475,0.000297,2]
[341322992,1730793040263,-1000.0,0.000297,2]
[341322993,1730793040274,-7343.11806998,0.000297,2]
[341323016,1730793042980,-454.2178102,0.00016168,2]
[341323017,1730793042990,-418.4406797,0.0002968,2]
[341323018,1730793043001,-6096.59138805,0.000297,2]
[341323019,1730793043041,-17972.61380405,0.000297,2]
[341323022,1730793043214,-149612.21632229,0.000297,2]
[341323023,1730793043226,-43731.33790779,0.000297,2]
[341323024,1730793043237,-220.0,0.000297,2]
[341323025,1730793043246,-975.24430517,0.00029745,5]
[341323026,1730793043256,-500.0865555,0.00029773,5]
[341323027,1730793043267,-2352.9190903,0.0002978,2]
[341323028,1730793043277,-2126.7836938,0.0002978,2]
[341323029,1730793043287,-382.6635493,0.0002978,2]
[341323030,1730793043297,-346.8864188,0.0002978,2]
[341323031,1730793043308,-156.0,0.000298,5]
[341323032,1730793043320,-224927.13385876,0.000298,2]
[341323033,1730793043333,-608.6701104,0.000298,2]
[341323036,1730793045982,-165.381,0.00018813,2]
[341323037,1730793045992,-91.4759872,0.00029024,7]
[341323038,1730793046141,-108.5240128,0.00029024,7]
[341323039,1730793046152,-188.79180145,0.000298,2]
[341323095,1730794231915,-157.97,0.00015342,2]
[341323096,1730794231926,-158.28,0.00015342,2]
[341323097,1730794231935,-1662.0,0.000183,2]
[341323098,1730794231946,-719.29,0.00024823,2]
[341323099,1730794231957,-1000.0,0.00024823,2]
[341323100,1730794231968,-1048.73015534,0.00024823,2]
[341323101,1730794231977,-3362.52868653,0.00024823,2]
[341323102,1730794231987,-175.78,0.00025042,30]
[341323103,1730794231995,-675.51,0.00025805,2]
[341323104,1730794232004,-370.888,0.00026014,12]
[341323105,1730794232013,-158.28,0.00026401,2]
[341323106,1730794232026,-2760.43,0.00026658,2]
[341323107,1730794232035,-200.0,0.00027397,7]
[341323108,1730794232044,-23900.0,0.00027505,2]
[341323109,1730794232053,-1180.42,0.00027578,2]
[341323110,1730794232063,-175.78,0.00027626,30]
[341323111,1730794232072,-398.63,0.00027718,2]
[341323112,1730794232082,-200.0,0.00027775,2]
[341323113,1730794232092,-1000.0,0.00027926,2]
[341323114,1730794232101,-675.51,0.00028069,2]
[341323115,1730794232110,-250.0,0.00028161,2]
[341323116,1730794232120,-1811.33,0.00028488,2]
[341323117,1730794232130,-459.4397,0.0002878,2]
[341323118,1730794232142,-157.97,0.00028858,2]
[341323119,1730794232151,-155.175,0.0002936,2]
[341323120,1730794232161,-155.64944906,0.00029548,2]
[341323121,1730794232170,-205.0,0.000296,10]
[341323122,1730794232180,-14393.41928006,0.000297,2]
[341323124,1730794232196,-703.37788318,0.000297,2]
[341323125,1730794232212,-422.24498104,0.000297,2]
[341323126,1730794232236,-2260.18453314,0.000297,2]
[341323128,1730794232255,-599.27580132,0.000297,2]
[341323129,1730794232269,-340.78735789,0.000297,2]
[341323132,1730794237951,-551.15361802,0.000297,2]
[341323133,1730794237963,-1432.37124919,0.000297,2]
[341323134,1730794237978,-18471.21679616,0.000297,2]
[341323135,1730794237987,-1000.0,0.000297,2]
[341323136,1730794237998,-372.07874696,0.000297,15]
[341323137,1730794238007,-329.84388887,0.000297,2]
[341323138,1730794238081,-1000.63593,0.000297,2]
[341323139,1730794238222,-460.86512179,0.000297,2]
[341323146,1730794239955,-708.65505934,0.000297,2]
[341323147,1730794239965,-162.92053325,0.000297,2]
[341323149,1730794239974,-131.12411797,0.000297,2]
[341323153,1730794240014,-195.07440676,0.000297,2]
[341323154,1730794240023,-355.40882442,0.00029799,2]
[341323161,1730794242957,-144.59117558,0.00029799,2]
[341323162,1730794242966,-500.0,0.00029799,2]
[341323163,1730794242976,-190.05592625,0.00029799,2]
[341323164,1730794242985,-500.0,0.00029799,2]
[341323165,1730794242995,-500.0,0.00029799,2]
[341323166,1730794243004,-500.0,0.00029799,2]
[341323167,1730794243013,-120.91577824,0.00029799,2]
[341323168,1730794243024,-379.08422176,0.00029799,2]
[341323169,1730794243033,-500.0,0.00029799,2]
[341323170,1730794243043,-19832.57906934,0.000298,2]
[341323171,1730794243077,-3004.950001,0.000298,2]
[341323172,1730794243088,-7023.4706126,0.000298,2]
[341323173,1730794243117,-300.29495096,0.000298,2]
[341323182,1730794245973,-852.919104,0.000297,2]
[341323184,1730794246129,-50.622996,0.000297,2]
[341323185,1730794246138,-3400.477004,0.000298,2]
[341323186,1730794246184,-47292.0820654,0.000298,2]
[341323187,1730794246240,-335.23446328,0.000298,2]
[341323188,1730794246252,-2354.70158924,0.000298,2]
[341323189,1730794246264,-4141.29819251,0.000298,2]
[341323203,1730795120476,750.0,9e-05,2]
[341323219,1730795284694,-1102.03345946,0.00015,2]
[341323220,1730795284947,-1102.03345946,0.00015,2]
[341323221,1730795285162,-993.70134054,0.00015,2]
[341323222,1730795286527,-1090.27892886,0.00015,2]
[341323223,1730795291412,7640.17994629,0.00013,4]
[341323239,1730795402208,-150.0,0.00014999,2]
[341323253,1730795432229,-150.0,0.00014999,2]
[341323254,1730795432239,-1696.4805,0.00015,2]
[341323255,1730795432250,-441.7705,0.00015,2]
[341323256,1730795432261,-6918.83811764,0.00015,2]
[341323257,1730795432275,-27847.0306,0.00015,2]
[341323258,1730795432290,-28516.9648969,0.00015,2]
[341323259,1730795432299,-155.55,0.00015342,2]
[341323260,1730795432309,-157.17,0.00015342,2]
[341323261,1730795432320,-150.0,0.00015736,2]
[341323262,1730795432330,-2602.7143,0.000159,2]
[341323263,1730795432341,-167.8927,0.000159,2]
[341323264,1730795432351,-500.0,0.00015973,2]
[341323265,1730795432362,-178.0793577,0.0001599,2]
[341323266,1730795432371,-162.92053324,0.00015995,2]
[341323267,1730795432381,-627.27181857,0.00015999,2]
[341323268,1730795432390,-627.27181857,0.00015999,2]
[341323269,1730795432399,-627.27181857,0.00015999,2]
[341323270,1730795432409,-627.27181857,0.00015999,2]
[341323271,1730795432420,-627.27181857,0.00015999,2]
[341323272,1730795432430,-627.27181857,0.00015999,2]
[341323273,1730795432440,-627.27181857,0.00015999,2]
[341323274,1730795432450,-627.27181857,0.00015999,2]
[341323275,1730795432460,-627.27181857,0.00015999,2]
[341323276,1730795432637,-627.27181857,0.00015999,2]
[341323277,1730795432647,-627.27181857,0.00015999,2]
[341323278,1730795432659,-627.27181857,0.00015999,2]
[341323279,1730795432669,-627.27181857,0.00015999,2]
[341323280,1730795432681,-500.0,0.00015999,2]
[341323281,1730795432690,-627.27181857,0.00015999,2]
[341323282,1730795432700,-212.63685334,0.00015999,2]
[341323283,1730795432710,-627.27181857,0.00015999,2]
[341323284,1730795432720,-627.27181857,0.00015999,2]
[341323285,1730795432730,-1049.47458082,0.00015999,2]
[341323286,1730795432739,-1049.47458082,0.00015999,2]
[341323287,1730795432749,-1049.47458082,0.00015999,2]
[341323288,1730795432758,-1049.47458082,0.00015999,2]
[341323289,1730795432768,-1049.47458082,0.00015999,2]
[341323290,1730795432777,-1049.47458082,0.00015999,2]
[341323291,1730795432788,-1049.47458082,0.00015999,2]
[341323292,1730795432797,-1049.47458082,0.00015999,2]
[341323293,1730795432807,-1049.47458082,0.00015999,2]
[341323294,1730795432817,-1049.47458082,0.00015999,2]
[341323295,1730795432827,-1049.47458082,0.00015999,2]
[341323296,1730795432836,-1060.95320905,0.00015999,2]
[341323297,1730795432845,-1060.95320905,0.00015999,2]
[341323298,1730795432854,-556095.86694578,0.00016,2]
[341323299,1730795432870,-3000.87411474,0.00016,2]
[341323300,1730795432881,-473.94894582,0.00016,2]
[341323301,1730795432892,-2180.12284278,0.00016,2]
[341323302,1730795432907,-925.1775,0.00016,2]
[341323303,1730795432936,-2058.49733782,0.00016,2]
[341323304,1730795432947,-53471.64101768,0.00016,2]
[341323305,1730795432963,-49056.20154188,0.00016,2]
[341323306,1730795438226,-542758.79093026,0.00016,2]
[341323307,1730795438238,-420.0,0.00016416,2]
[341323308,1730795438251,-5945.55,0.00016416,2]
[341323309,1730795438265,-587.0,0.00017966,2]
[341323310,1730795438282,-324.0,0.000183,2]
[341323311,1730795438293,-6837.93578404,0.0001892,2]
[341323312,1730795438310,-433.0,0.00019663,2]
[341323313,1730795438323,-5918.0,0.00020073,2]
[341323314,1730795438335,-151.0,0.00020073,2]
[341323315,1730795438347,-452.0,0.00020073,2]
[341323316,1730795438363,-13606.0,0.00020073,2]
[341323317,1730795438377,-1793.0,0.00020173,2]
[341323318,1730795438390,-814.576,0.00020173,2]
[341323319,1730795438402,-819.0,0.00020173,2]
[341323320,1730795438416,-1270.142,0.00020173,2]
[341323321,1730795438430,-2905.0,0.00020173,2]
[341323322,1730795438443,-3397.831,0.00020173,2]
[341323323,1730795438456,-1089.0,0.00020173,2]
[341323324,1730795438469,-169.098,0.00020173,2]
[341323325,1730795438482,-1260.481,0.00020173,2]
[341323326,1730795438495,-3185.29460274,0.00022,2]
[341323327,1730795438508,-5910.0,0.00023073,2]
[341323328,1730795438520,-452.0,0.00023073,2]
[341323329,1730795438534,-13586.0,0.00023073,2]
[341323330,1730795438546,-1087.0,0.00023173,2]
[341323331,1730795438559,-150.0,0.00023173,2]
[341323332,1730795438571,-1252.0,0.00023173,2]
[341323333,1730795438584,-655.27,0.00023797,2]
[341323334,1730795438597,-167.68,0.00024514,2]
[341323335,1730795438610,-279.98,0.00024582,2]
[341323336,1730795438623,-155.27,0.00024823,2]
[341323337,1730795438637,-150.0,0.00024823,2]
[341323338,1730795438651,-155.27,0.00024839,2]
[341323339,1730795438664,-155.27,0.00024854,2]
[341323340,1730795438677,-155.27,0.0002487,2]
[341323341,1730795438689,-158.2,0.00024877,30]
[341323342,1730795438702,-155.27,0.00024885,2]
[341323343,1730795438714,-155.27,0.00024901,2]
[341323344,1730795438728,-155.27,0.00024916,2]
[341323345,1730795438740,-155.27,0.00024932,2]
[341323346,1730795438754,-155.27,0.00024947,2]
[341323347,1730795438766,-155.27,0.00024963,2]
[341323350,1730795438778,-279.98,0.00024977,2]
[341323352,1730795438791,-155.27,0.00024978,2]
[341323353,1730795438803,-155.27,0.00024994,2]
[341323354,1730795438815,-4670.7753039,0.00025,2]
[341323355,1730795438828,-155.27,0.00025009,2]
[341323356,1730795438840,-155.27,0.00025025,2]